bitfinex/quotes_SOLUSD_20220130
["timestamp","ask_amount","ask_price","bid_price","bid_amount"]
[1643581369196,3.01003115,92.49,92.41,15.55]
[1643581373801,1.50659507,92.465,92.41,15.55]
[1643581374004,1.50659507,92.464,92.41,15.55]
[1643581374204,1.50659507,92.463,92.41,15.55]
[1643581375806,1.50659507,92.465,92.41,15.55]
[1643581376005,1.50659507,92.464,92.41,15.55]
[1643581376206,3.01003115,92.49,92.41,15.55]
[1643581377011,28.26402522,92.489,92.41,15.55]
[1643581377411,3.01003115,92.488,92.41,15.55]
[1643581377611,6.02154198,92.488,92.41,15.55]
[1643581378613,3.01003115,92.488,92.41,15.55]
[1643581379010,3.01151083,92.489,92.41,15.55]
[1643581381939,6.02154198,92.49,92.41,15.55]
[1643581382936,3.01003115,92.49,92.41,15.55]
[1643581383136,5.96672257,92.489,92.41,15.55]
[1643581383335,111.01003115,92.488,92.41,15.55]
[1643581383535,3.01151083,92.486,92.41,15.55]
[1643581383737,6.02154198,92.487,92.41,15.55]
[1643581383938,6.02154198,92.488,92.41,15.55]
[1643581384138,3.01003115,92.488,92.41,15.55]
[1643581384338,111.01003115,92.488,92.41,15.55]
[1643581384838,3.01003115,92.487,92.41,15.55]
[1643581385440,3.01003115,92.488,92.41,15.55]
[1643581388246,8.75062459,92.487,92.41,15.55]
[1643581388447,3.01003115,92.486,92.41,15.55]
[1643581389449,8.74652499,92.485,92.41,15.55]
[1643581389650,3.01003115,92.484,92.41,15.55]
[1643581390149,3.01003115,92.486,92.41,15.55]
[1643581390549,3.01003115,92.488,92.41,15.55]
[1643581390749,8.74643119,92.485,92.41,15.55]
[1643581391048,3.01003115,92.488,92.41,15.55]
[1643581391049,8.74643119,92.487,92.41,15.55]
[1643581391249,3.00602026,92.486,92.41,15.55]
[1643581391650,8.74643119,92.487,92.41,15.55]
[1643581391851,2.95669142,92.488,92.41,15.55]
[1643581392053,3.00428798,92.487,92.41,15.55]
[1643581392254,11.74810576,92.487,92.41,15.55]
[1643581392456,8.74381778,92.487,92.41,15.55]
[1643581392655,119.7480942,92.486,92.41,15.55]
[1643581393079,11.7480942,92.485,92.41,15.55]
[1643581393479,11.7480942,92.484,92.41,15.55]
[1643581393880,11.7480942,92.483,92.41,15.55]
[1643581394080,8.74381778,92.483,92.41,15.55]
[1643581394281,11.74902356,92.482,92.41,15.55]
[1643581394481,8.74381778,92.482,92.41,15.55]
[1643581394683,8.74381778,92.481,92.41,15.55]
[1643581395084,23.9527,92.48,92.41,15.55]
[1643581397688,8.74322455,92.479,92.41,15.55]
[1643581399487,8.74322455,92.479,92.411,23.0002]
[1643581399686,23.9527,92.48,92.411,23.0002]
[1643581400786,23.9527,92.48,92.41,15.55]
[1643581403199,23.9527,92.48,92.411,23.0758]
[1643581408495,3.01151083,92.498,92.411,23.0758]
[1643581408694,2.99922596,92.498,92.411,23.0758]
[1643581408995,8.74511496,92.497,92.411,23.0758]
[1643581409395,8.74511496,92.498,92.411,23.0758]
[1643581409793,2.99837555,92.497,92.411,23.0758]
[1643581410398,33.51681496,92.496,92.411,23.0758]
[1643581410795,8.74511496,92.495,92.411,23.0758]
[1643581411596,2.99983398,92.494,92.411,23.0758]
[1643581411796,8.74511496,92.495,92.411,23.0758]
[1643581411997,8.74511496,92.493,92.411,23.0758]
[1643581412396,8.74511496,92.495,92.411,23.0758]
[1643581412795,2.9994596,92.494,92.411,23.0758]
[1643581413196,8.74511496,92.493,92.411,23.0758]
[1643581413797,2.9994596,92.492,92.411,23.0758]
[1643581413997,8.74511496,92.493,92.411,23.0758]
[1643581414403,8.74511496,92.495,92.411,23.0758]
[1643581414801,3.00023426,92.494,92.411,23.0758]
[1643581415202,8.74511496,92.493,92.411,23.0758]
[1643581415605,8.74511496,92.493,92.412,108.0]
[1643581416102,8.74511496,92.495,92.412,108.0]
[1643581417302,8.74511496,92.505,92.412,108.0]
[1643581417502,3.00139105,92.504,92.412,108.0]
[1643581418002,8.74511496,92.503,92.412,108.0]
[1643581418209,8.74511496,92.503,92.423,108.0]
[1643581418408,3.01151083,92.516,92.43,15.55]
[1643581418614,3.01151083,92.524,92.44,16.228]
[1643581418808,3.0017474,92.529,92.44,16.228]
[1643581418809,3.01151083,92.526,92.451,108.0]
[1643581419008,8.77176043,92.515,92.451,108.0]
[1643581419238,8.77176043,92.528,92.451,108.0]
[1643581419440,2.99911506,92.527,92.452,23.2815]
[1643581419840,2.99911506,92.527,92.453,108.0]
[1643581420041,8.77176043,92.526,92.453,108.0]
[1643581420644,8.77176043,92.527,92.453,108.0]
[1643581421047,8.77176043,92.525,92.453,108.0]
[1643581421445,8.77176043,92.526,92.453,108.0]
[1643581421844,8.77176043,92.536,92.453,108.0]
[1643581422246,2.99524253,92.535,92.453,108.0]
[1643581422545,8.77176043,92.534,92.453,108.0]
[1643581422945,8.77176043,92.535,92.453,108.0]
[1643581423347,2.99451775,92.534,92.453,108.0]
[1643581423545,2.99451775,92.539,92.453,108.0]
[1643581423845,8.77176043,92.533,92.453,108.0]
[1643581424251,8.77176043,92.532,92.453,108.0]
[1643581424747,8.77176043,92.531,92.453,108.0]
[1643581424946,8.77176043,92.53,92.453,108.0]
[1643581425548,0.1,92.543,92.453,108.0]
[1643581425748,3.01151083,92.546,92.453,108.0]
[1643581425953,8.75555055,92.542,92.453,108.0]
[1643581426148,2.99262126,92.541,92.453,108.0]
[1643581426349,3.09262126,92.541,92.453,108.0]
[1643581426550,2.99262126,92.541,92.453,108.0]
[1643581426750,8.75555055,92.54,92.453,108.0]
[1643581426949,2.99262126,92.539,92.453,108.0]
[1643581427350,3.09262126,92.542,92.453,108.0]
[1643581427650,8.75555055,92.538,92.453,108.0]
[1643581427850,8.85555055,92.541,92.453,108.0]
[1643581428052,2.99164921,92.54,92.453,108.0]
[1643581428253,11.84719976,92.54,92.453,108.0]
[1643581428456,2.99164921,92.539,92.453,108.0]
[1643581428653,11.74719976,92.539,92.453,108.0]
[1643581428852,8.75555055,92.539,92.453,108.0]
[1643581429053,8.75555055,92.538,92.453,108.0]
[1643581429460,8.75555055,92.545,92.453,108.0]
[1643581429754,2.99158671,92.544,92.453,108.0]
[1643581429955,3.09158671,92.544,92.453,108.0]
[1643581430379,8.75555055,92.543,92.453,108.0]
[1643581430654,8.85555055,92.543,92.453,108.0]
[1643581430957,2.99158671,92.542,92.453,108.0]
[1643581431154,11.84713726,92.542,92.453,108.0]
[1643581431353,3.09158671,92.541,92.453,108.0]
[1643581431555,11.84713726,92.541,92.453,108.0]
[1643581431754,3.09158671,92.54,92.453,108.0]
[1643581431954,11.84713726,92.54,92.453,108.0]
[1643581432154,11.74713726,92.54,92.453,108.0]
[1643581432356,11.74713726,92.539,92.453,108.0]
[1643581432556,8.75555055,92.539,92.453,108.0]
[1643581432755,8.75555055,92.538,92.453,108.0]
[1643581433155,8.75555055,92.545,92.453,108.0]
[1643581433355,2.9914741,92.544,92.453,108.0]
[1643581433560,3.0914741,92.544,92.453,108.0]
[1643581433957,8.75555055,92.543,92.453,108.0]
[1643581434156,2.9914741,92.542,92.453,108.0]
[1643581434356,3.0914741,92.542,92.453,108.0]
[1643581434757,8.75555055,92.541,92.453,108.0]
[1643581434957,8.85555055,92.541,92.453,108.0]
[1643581435259,22.848,92.54,92.453,108.0]
[1643581435457,22.848,92.54,92.453,132.7851]
[1643581437165,22.848,92.54,92.454,0.25]
[1643581437366,22.948,92.54,92.454,0.25]
[1643581437566,22.848,92.54,92.454,0.25]
[1643581438385,22.848,92.54,92.461,108.0]
[1643581438687,22.848,92.54,92.47,15.55]
[1643581438886,22.848,92.54,92.471,152.87507863]
[1643581439088,22.848,92.54,92.472,23.7285]
[1643581440088,22.848,92.54,92.473,108.0]
[1643581440687,22.948,92.54,92.473,108.0]
[1643581440888,22.848,92.54,92.473,108.0]
[1643581441395,0.1,92.554,92.473,108.0]
[1643581441590,2.99065111,92.555,92.473,108.0]
[1643581441790,8.74026074,92.553,92.473,108.0]
[1643581442190,2.99065111,92.552,92.473,108.0]
[1643581442391,3.09065111,92.553,92.473,108.0]
[1643581442590,11.73091185,92.551,92.473,108.0]
[1643581442794,3.09065111,92.55,92.473,108.0]
[1643581442998,11.83091185,92.55,92.473,108.0]
[1643581443190,3.09065111,92.549,92.473,108.0]
[1643581443390,11.83091185,92.549,92.473,108.0]
[1643581443590,3.09065111,92.548,92.473,108.0]
[1643581443791,11.83091185,92.548,92.473,108.0]
[1643581443996,0.1,92.547,92.473,108.0]
[1643581444290,11.83091185,92.547,92.473,108.0]
[1643581444491,0.1,92.546,92.473,108.0]
[1643581444791,11.83091185,92.546,92.473,108.0]
[1643581444997,3.09065111,92.545,92.473,108.0]
[1643581445493,2.99065111,92.545,92.473,108.0]
[1643581445895,3.01151083,92.549,92.473,108.0]
[1643581446093,3.01151083,92.55,92.473,108.0]
[1643581446495,8.7337935,92.549,92.473,108.0]
[1643581446693,3.01151083,92.548,92.473,108.0]
[1643581446893,3.01151083,92.547,92.473,108.0]
[1643581447095,6.10216194,92.548,92.473,108.0]
[1643581447496,3.01151083,92.548,92.473,108.0]
[1643581447695,3.01151083,92.541,92.473,108.0]
[1643581447895,23.676,92.54,92.473,108.0]
[1643581448095,2.99065111,92.539,92.473,108.0]
[1643581448895,6.00216194,92.539,92.473,108.0]
[1643581450097,3.01151083,92.537,92.473,108.0]
[1643581450896,3.01151083,92.536,92.473,108.0]
[1643581451098,3.01151083,92.537,92.472,23.7285]
[1643581451297,3.01151083,92.536,92.472,23.7285]
[1643581451700,3.01151083,92.535,92.472,23.7285]
[1643581454400,2.99065111,92.539,92.472,23.7285]
[1643581454401,3.01151083,92.536,92.472,23.7285]
[1643581455801,2.99065111,92.539,92.472,23.7285]
[1643581456201,2.99065111,92.539,92.471,44.87507863]
[1643581456403,2.99065111,92.539,92.335,97.69441187]
[1643581456601,3.01151083,92.537,92.41,15.55]
[1643581456807,3.01151083,92.51,92.41,15.55]
[1643581457001,3.01151083,92.51,92.39,15.55]
[1643581457002,13.81151083,92.51,92.39,15.55]
[1643581457202,3.01151083,92.49,92.38,15.55]
[1643581457401,3.01151083,92.49,92.381,45.59964035]
[1643581457604,3.01151083,92.482,92.381,45.59964035]
[1643581458001,24.336,92.481,92.381,45.59964035]
[1643581459003,45.12055985,92.481,92.381,45.59964035]
[1643581459504,8.88280086,92.48,92.381,45.59964035]
[1643581459904,19.47799941,92.479,92.381,153.59964035]
[1643581460903,22.5401,92.478,92.381,153.59964035]
[1643581461303,43.32465985,92.478,92.381,153.59964035]
[1643581462907,2.95669142,92.477,92.381,153.59964035]
[1643581463507,43.32465985,92.478,92.381,153.59964035]
[1643581465910,46.28135127,92.478,92.381,153.59964035]
[1643581468410,43.32465985,92.478,92.381,153.59964035]
[1643581468611,2.95669142,92.477,92.381,153.59964035]
[1643581469111,2.95669142,92.477,92.381,45.59964035]
[1643581470012,22.43469083,92.477,92.381,45.59964035]
[1643581470411,2.95669142,92.476,92.381,45.59964035]
[1643581470814,20.78455985,92.475,92.381,45.59964035]
[1643581471216,2.95669142,92.474,92.381,45.59964035]
[1643581471415,14.26612708,92.474,92.381,45.59964035]
[1643581471636,20.77621611,92.473,92.381,45.59964035]
[1643581471814,23.73290753,92.473,92.381,45.59964035]
[1643581472016,20.77621611,92.473,92.381,45.59964035]
[1643581472217,2.95669142,92.472,92.381,45.59964035]
[1643581472615,19.48634315,92.471,92.381,45.59964035]
[1643581473016,2.95669142,92.47,92.381,45.59964035]
[1643581473217,25.59079142,92.47,92.381,45.59964035]
[1643581473416,20.77621611,92.469,92.381,45.59964035]
[1643581473616,23.73290753,92.469,92.381,45.59964035]
[1643581473816,2.95669142,92.468,92.381,45.59964035]
[1643581474217,2.95669142,92.468,92.382,108.0]
[1643581474416,20.77621611,92.469,92.382,108.0]
[1643581475218,22.6341,92.47,92.382,108.0]
[1643581475421,22.6341,92.47,92.381,45.59964035]
[1643581476217,22.6341,92.47,92.382,108.0]
[1643581476418,2.95669142,92.496,92.383,0.25]
[1643581476619,22.9461,92.496,92.384,108.0]
[1643581476821,22.9461,92.496,92.392,108.0]
[1643581477019,22.9461,92.496,92.401,108.0]
[1643581477221,22.9461,92.496,92.403,108.0]
[1643581477821,22.9461,92.496,92.404,2.51401593]
[1643581480427,22.9461,92.496,92.414,6.0]
[1643581480629,22.9461,92.496,92.415,39.15284802]
[1643581481129,22.9461,92.496,92.425,6.0]
[1643581484033,22.9461,92.496,92.426,6.0]
[1643581484330,22.9461,92.496,92.425,6.0]
[1643581484331,22.9461,92.496,92.418,108.0]
[1643581484531,18.94043763,92.516,92.426,2.51401593]
[1643581485032,24.6993,92.532,92.426,2.51401593]
[1643581485231,2.98346004,92.531,92.426,2.51401593]
[1643581486130,2.98346004,92.531,92.431,108.0]
[1643581486331,24.6993,92.532,92.432,0.25]
[1643581486532,24.6993,92.532,92.442,108.0]
[1643581486754,21.01441084,92.568,92.441,6.0]
[1643581486755,0.1,92.541,92.451,108.0]
[1643581486958,2.9847773,92.542,92.451,108.0]
[1643581487155,3.01151083,92.548,92.451,108.0]
[1643581487354,3.01151083,92.55,92.452,2.51401593]
[1643581487558,3.01151083,92.551,92.452,2.51401593]
[1643581487955,3.01151083,92.551,92.46,16.225]
[1643581488156,8.70026904,92.55,92.461,108.0]
[1643581488355,11.68504634,92.55,92.462,23.0702]
[1643581488555,3.0847773,92.549,92.463,108.0]
[1643581488756,3.0847773,92.552,92.463,108.0]
[1643581489155,2.9847773,92.554,92.463,108.0]
[1643581489758,0.1,92.555,92.463,108.0]
[1643581489759,8.70136626,92.553,92.463,108.0]
[1643581489958,2.9847773,92.552,92.463,108.0]
[1643581490162,3.0847773,92.552,92.463,108.0]
[1643581490359,2.9847773,92.552,92.463,108.0]
[1643581490558,3.0847773,92.553,92.463,108.0]
[1643581490761,3.0847773,92.555,92.463,108.0]
[1643581490960,8.70178329,92.552,92.463,108.0]
[1643581491361,8.70178329,92.554,92.463,108.0]
[1643581491770,0.1,92.555,92.463,108.0]
[1643581492362,0.1,92.555,92.464,0.25]
[1643581496169,1.48936316,92.551,92.464,0.25]
[1643581496570,1.48936316,92.55,92.464,0.25]
[1643581496970,1.48936316,92.551,92.464,0.25]
[1643581497772,1.48936316,92.552,92.464,0.25]
[1643581497978,1.48936316,92.553,92.464,0.25]
[1643581498372,1.48936316,92.551,92.464,0.25]
[1643581501072,1.48936316,92.549,92.463,107.75]
[1643581501273,1.48936316,92.547,92.463,107.75]
[1643581503073,1.48936316,92.542,92.463,107.75]
[1643581503474,23.5176,92.556,92.463,107.75]
[1643581503475,1.48936316,92.543,92.463,107.75]
[1643581503674,1.48936316,92.544,92.463,107.75]
[1643581503873,1.48936316,92.543,92.463,107.75]
[1643581504074,1.48936316,92.542,92.463,107.75]
[1643581504273,1.48936316,92.542,92.464,0.25]
[1643581504876,0.25,92.541,92.464,0.25]
[1643581506004,0.25,92.541,92.463,107.75]
[1643581506005,1.48936316,92.54,92.463,107.75]
[1643581506303,1.48936316,92.536,92.463,107.75]
[1643581506503,1.48936316,92.538,92.463,107.75]
[1643581507303,1.48936316,92.54,92.464,0.25]
[1643581508104,1.48936316,92.537,92.464,0.25]
[1643581508304,0.25,92.536,92.464,0.25]
[1643581509204,1.48936316,92.539,92.464,0.25]
[1643581509407,1.48936316,92.54,92.464,0.25]
[1643581509804,1.48936316,92.538,92.464,0.25]
[1643581510204,1.48936316,92.54,92.464,0.25]
[1643581510404,1.48936316,92.54,92.463,107.75]
[1643581510605,1.48936316,92.534,92.463,107.75]
[1643581510807,1.48936316,92.535,92.463,107.75]
[1643581511012,1.48936316,92.533,92.463,107.75]
[1643581511210,1.48936316,92.532,92.463,107.75]
[1643581511810,1.48936316,92.534,92.463,107.75]
[1643581512210,1.48936316,92.532,92.463,107.75]
[1643581512610,1.48936316,92.534,92.463,107.75]
[1643581513010,0.25,92.533,92.463,107.75]
[1643581513211,1.48936316,92.528,92.463,107.75]
[1643581513411,0.25,92.527,92.463,107.75]
[1643581513813,1.48936316,92.528,92.463,107.75]
[1643581514011,1.48936316,92.528,92.463,118.12]
[1643581514814,3.01151083,92.554,92.463,118.12]
[1643581514815,1.48936316,92.534,92.463,118.12]
[1643581515013,1.48936316,92.532,92.464,0.25]
[1643581515213,1.48936316,92.534,92.463,107.75]
[1643581515415,1.48936316,92.53,92.463,107.75]
[1643581515811,0.25,92.529,92.462,23.0702]
[1643581516013,1.48936316,92.526,92.46,15.55]
[1643581516215,1.48936316,92.526,92.443,37.70322823]
[1643581516613,1.48936316,92.505,92.443,37.70322823]
[1643581516816,1.48936316,92.501,92.443,37.70322823]
[1643581517212,1.73936316,92.5,92.443,37.70322823]
[1643581518014,0.25,92.5,92.443,37.70322823]
[1643581518214,1.73936316,92.5,92.443,37.70322823]
[1643581518514,0.25,92.5,92.443,37.70322823]
[1643581518918,1.73936316,92.502,92.443,37.70322823]
[1643581519215,1.48936316,92.501,92.443,37.70322823]
[1643581519616,0.25,92.502,92.443,37.70322823]
[1643581520016,1.73936316,92.502,92.443,37.70322823]
[1643581520218,0.25,92.502,92.443,37.70322823]
[1643581520816,1.48936316,92.508,92.443,37.70322823]
[1643581521018,1.48936316,92.505,92.443,37.70322823]
[1643581521225,1.48936316,92.508,92.443,37.70322823]
[1643581521422,1.48936316,92.509,92.443,37.70322823]
[1643581521718,1.48936316,92.512,92.443,37.70322823]
[1643581521918,1.48936316,92.509,92.443,37.70322823]
[1643581522118,1.48936316,92.51,92.443,37.70322823]
[1643581523824,1.48936316,92.509,92.443,37.70322823]
[1643581524021,1.48936316,92.506,92.443,37.70322823]
[1643581524221,1.48936316,92.508,92.443,37.70322823]
[1643581524421,1.48936316,92.51,92.443,37.70322823]
[1643581524623,1.48936316,92.509,92.443,37.70322823]
[1643581524920,1.48936316,92.508,92.443,37.70322823]
[1643581525320,1.48936316,92.509,92.443,37.70322823]
[1643581527123,24.3478,92.524,92.443,37.70322823]
[1643581527124,1.48936316,92.512,92.443,37.70322823]
[1643581527524,24.3478,92.524,92.443,37.70322823]
[1643581527525,1.48936316,92.509,92.443,37.70322823]
[1643581527724,1.48936316,92.514,92.443,37.70322823]
[1643581527924,1.48936316,92.51,92.443,37.70322823]
[1643581528425,0.25,92.509,92.443,37.70322823]
[1643581528827,1.48936316,92.51,92.443,37.70322823]
[1643581529225,0.25,92.511,92.443,37.70322823]
[1643581530026,1.48936316,92.51,92.443,37.70322823]
[1643581530227,0.25,92.511,92.443,37.70322823]
[1643581530627,1.48936316,92.51,92.443,37.70322823]
[1643581533036,1.48936316,92.509,92.443,37.70322823]
[1643581533235,1.73936316,92.509,92.443,37.70322823]
[1643581534537,1.48936316,92.507,92.443,37.70322823]
[1643581536538,1.48936316,92.506,92.443,37.70322823]
[1643581538139,1.48936316,92.507,92.443,37.70322823]
[1643581538339,1.48936316,92.506,92.443,37.70322823]
[1643581538540,1.48936316,92.499,92.443,37.70322823]
[1643581539042,1.48936316,92.497,92.443,37.70322823]
[1643581539274,1.48936316,92.498,92.443,37.70322823]
[1643581539770,1.73936316,92.497,92.443,37.70322823]
[1643581540372,1.48936316,92.496,92.443,37.70322823]
[1643581540771,1.73936316,92.497,92.443,37.70322823]
[1643581541573,1.48936316,92.496,92.443,37.70322823]
[1643581542172,1.48936316,92.498,92.443,37.70322823]
[1643581543173,1.48936316,92.497,92.443,37.70322823]
[1643581543374,1.48936316,92.496,92.443,37.70322823]
[1643581544277,1.48936316,92.495,92.443,37.70322823]
[1643581544974,1.48936316,92.493,92.443,37.70322823]
[1643581545375,1.48936316,92.489,92.443,37.70322823]
[1643581546478,1.48936316,92.49,92.443,37.70322823]
[1643581547480,1.48936316,92.495,92.443,37.70322823]
[1643581547680,1.48936316,92.496,92.443,37.70322823]
[1643581548080,1.48936316,92.497,92.443,37.70322823]
[1643581548280,1.48936316,92.496,92.443,37.70322823]
[1643581548481,1.48936316,92.495,92.443,37.70322823]
[1643581548883,1.48936316,92.494,92.443,37.70322823]
[1643581549284,0.25,92.493,92.443,37.70322823]
[1643581549684,1.48936316,92.496,92.443,37.70322823]
[1643581549885,0.25,92.495,92.443,37.70322823]
[1643581552115,1.48936316,92.496,92.443,37.70322823]
[1643581552313,1.48936316,92.497,92.443,37.70322823]
[1643581552513,1.48936316,92.498,92.443,37.70322823]
[1643581552714,1.48936316,92.5,92.443,37.70322823]
[1643581553915,1.48936316,92.5,92.444,24.8632]
[1643581554818,0.98936316,92.501,92.444,24.8632]
[1643581557623,2.99685091,92.523,92.444,24.8632]
[1643581558021,8.73429139,92.522,92.444,24.8632]
[1643581558220,2.99685091,92.521,92.444,24.8632]
[1643581558821,8.73429139,92.52,92.444,24.8632]
[1643581559321,3.24699815,92.519,92.444,24.8632]
[1643581559719,8.73429139,92.518,92.444,24.8632]
[1643581561726,8.73429139,92.523,92.444,24.8632]
[1643581562027,2.99638588,92.522,92.444,24.8632]
[1643581562427,8.73429139,92.521,92.444,24.8632]
[1643581562627,2.99638588,92.52,92.444,24.8632]
[1643581563425,24.3478,92.524,92.445,108.25]
[1643581563626,24.3478,92.524,92.445,119.46]
[1643581564327,3.01151083,92.541,92.445,119.46]
[1643581564626,3.01151083,92.542,92.445,119.46]
[1643581564826,3.01151083,92.546,92.445,119.46]
[1643581565129,8.75571361,92.541,92.445,119.46]
[1643581565328,12.00290685,92.545,92.445,119.46]
[1643581565528,3.01151083,92.543,92.455,6.0]
[1643581565728,14.76441768,92.544,92.455,6.0]
[1643581565929,2.99719324,92.543,92.455,6.0]
[1643581566128,23.5145,92.542,92.456,23.9216]
[1643581566530,2.99719324,92.541,92.456,23.9216]
[1643581566730,11.75290685,92.541,92.456,23.9216]
[1643581566930,11.75290685,92.541,92.457,108.0]
[1643581567130,8.75571361,92.54,92.457,108.0]
[1643581567330,8.75571361,92.54,92.458,0.25]
[1643581567331,11.75290685,92.54,92.458,0.25]
[1643581567531,2.99719324,92.54,92.467,6.0]
[1643581567734,3.01151083,92.557,92.468,132.0653]
[1643581567931,3.01151083,92.559,92.472,40.55374791]
[1643581568131,3.01151083,92.561,92.472,40.55374791]
[1643581568431,8.76896833,92.558,92.473,108.0]
[1643581568732,8.76896833,92.56,92.473,108.0]
[1643581568930,2.99567992,92.559,92.473,108.0]
[1643581569530,8.76896833,92.558,92.473,108.0]
[1643581569732,11.76464825,92.558,92.474,0.25]
[1643581570031,8.76896833,92.559,92.474,0.25]
[1643581570233,8.76896833,92.559,92.484,108.0]
[1643581570431,0.25,92.558,92.485,24.6266]
[1643581570733,0.25,92.558,92.486,108.0]
[1643581571031,8.76896833,92.557,92.486,108.0]
[1643581571632,8.76896833,92.563,92.486,108.0]
[1643581571832,2.9922626,92.562,92.486,108.0]
[1643581572532,8.76896833,92.561,92.486,108.0]
[1643581573032,8.76896833,92.563,92.486,108.0]
[1643581573832,23.1317,92.566,92.486,108.0]
[1643581574031,0.25,92.562,92.486,108.0]
[1643581574232,23.1317,92.566,92.486,108.0]
[1643581574434,0.25,92.565,92.486,108.0]
[1643581579640,0.25,92.565,92.497,108.0]
[1643581581038,23.1317,92.566,92.497,108.0]
[1643581582441,0.25,92.565,92.497,108.0]
[1643581585852,23.1317,92.566,92.497,108.0]
[1643581586454,0.51572928,92.591,92.497,108.0]
[1643581586655,25.00602928,92.591,92.498,23.955]
[1643581586855,11.75265256,92.59,92.499,108.0]
[1643581587054,2.98805416,92.589,92.501,108.0]
[1643581587254,11.75265256,92.589,92.501,108.0]
[1643581587455,2.98805416,92.588,92.501,108.0]
[1643581588258,2.98805416,92.59,92.501,108.0]
[1643581588454,2.98805416,92.587,92.501,108.0]
[1643581588755,2.98805416,92.586,92.501,108.0]
[1643581588954,2.98805416,92.588,92.501,108.0]
[1643581589354,2.98805416,92.59,92.501,108.0]
[1643581589555,25.00602928,92.591,92.501,108.0]
[1643581589556,2.98805416,92.587,92.501,108.0]
[1643581589754,11.74965217,92.589,92.5,46.39730059]
[1643581589954,0.25,92.586,92.5,46.39730059]
[1643581590155,2.98805416,92.585,92.5,46.39730059]
[1643581590356,3.23805416,92.587,92.5,46.39730059]
[1643581590556,2.98805416,92.586,92.5,46.39730059]
[1643581591773,2.98805416,92.586,92.501,0.25]
[1643581592274,2.95669142,92.585,92.501,0.25]
[1643581592574,2.98805416,92.584,92.501,0.25]
[1643581592774,2.98805416,92.586,92.501,0.25]
[1643581593974,3.01151083,92.588,92.501,0.25]
[1643581594777,3.01151083,92.589,92.501,108.25]
[1643581595177,2.98805416,92.59,92.501,108.25]
[1643581595577,2.98805416,92.59,92.501,118.73]
[1643581596581,2.98805416,92.59,92.512,108.0]
[1643581596782,2.98805416,92.59,92.514,108.0]
[1643581597185,0.25,92.589,92.514,108.0]
[1643581597382,23.771,92.6,92.514,108.0]
[1643581597383,14.33751049,92.624,92.515,31.58143608]
[1643581597583,14.33751049,92.624,92.525,6.0]
[1643581597784,4.47711084,92.653,92.532,108.0]
[1643581598185,8.79325579,92.643,92.543,108.0]
[1643581598384,8.79325579,92.643,92.551,108.0]
[1643581598587,4.47711084,92.676,92.561,108.0]
[1643581598784,4.47711084,92.676,92.563,108.0]
[1643581599185,4.47711084,92.676,92.574,32.93933555]
[1643581599385,8.80875327,92.675,92.575,23.0796]
[1643581599785,8.80875327,92.675,92.576,108.0]
[1643581600584,8.80875327,92.676,92.576,108.0]
[1643581602188,8.80875327,92.676,92.576,119.69]
[1643581602686,8.80875327,92.676,92.576,119.19]
[1643581602887,46.9,92.675,92.576,119.19]
[1643581603690,46.9,92.675,92.58,16.204]
[1643581604890,2.95669142,92.674,92.58,16.204]
[1643581605090,2.95669142,92.674,92.576,11.69]
[1643581606090,2.95669142,92.674,92.581,108.0]
[1643581606292,46.9,92.675,92.581,108.0]
[1643581607591,46.9,92.675,92.59,16.201]
[1643581607795,46.9,92.675,92.591,34.71544263]
[1643581608793,46.9,92.675,92.592,108.0]
[1643581609391,46.9,92.675,92.592,120.53]
[1643581609792,46.9,92.675,92.593,0.25]
[1643581609994,46.9,92.675,92.6,15.55]
[1643581610195,46.9,92.675,92.601,108.0]
[1643581610393,26.02999142,92.704,92.601,108.25]
[1643581610593,23.7757,92.703,92.601,108.25]